Workbook

Sheet Input Data
B3: Equilibrium Diagram | G3: Composition Expressed in : | H3: Molal Units
B4: x | C4: y | D4: 1
D5: =IF(Alpha<>0,(D4-0.05),B5) -> 0.950 | E5: =IF(Alpha<>0,Alpha*D5/((Alpha-1)*D5+1),C5) -> 0.988 | G5: Mass flow rate of Feed, F | H5: 1,000.0
D6: 0.900 | E6: 0.975 | G6: Mol. wt(more volatile comp.) | H6: 32
D7: 0.850 | E7: 0.961 | G7: Mol mass (less volatile comp.) | H7: 18 | CU7: =78*Xf+H7*(1-Xf) -> 48.00
D8: 0.800 | E8: 0.945 | G8: Feed composition, XF | H8: 0.5 | CU8: =F/CU7 -> 20.83
D9: 0.750 | E9: 0.929 | G9: Top Product composition, XD | H9: 0.9
D10: 0.700 | E10: 0.910 | G10: Bottom Product composition, XB | H10: 0.1
D11: 0.650 | E11: 0.890 | G11: q value | H11: 1 | CU11: Molal Units
D12: 0.600 | E12: 0.867 | G12: Reflux Ratio, R | H12: =1.25*0.28 -> 0.35 | CU12: Mass Units
D13: 0.550 | E13: 0.841 | G13: Relative Volatility, α | H13: 4.336
D14: 0.500 | E14: 0.813
D15: 0.450 | E15: 0.780 | CU15: Mass Units | CV15: Molal Units
D16: 0.400 | E16: 0.743 | CU16: =ROUND(IF(Unit="Molal Units",H8*$H$6/((1-H8)*$H$7+H8*$H$6),H8),3) -> 0.640 | CV16: =IF(Unit="Mass Units",H8/$H$6/((1-H8)/$H$7+H8/$H$6),H8) -> 0.500
D17: 0.350 | E17: 0.700 | G17: No. of theoritical plates | H17: =IF(Re>H18,Calculation!$R$5002,"Infinite") -> 8 | CU17: =ROUND(IF(Unit="Molal Units",H9*$H$6/((1-H9)*$H$7+H9*$H$6),H9),3) -> 0.941 | CV17: =IF(Unit="Mass Units",H9/$H$6/((1-H9)/$H$7+H9/$H$6),H9) -> 0.900
D18: 0.300 | E18: 0.650 | G18: Minimum Reflux Ratio | H18: =Calculation!$F$31 -> 0.28 | CU18: =ROUND(IF(Unit="Molal Units",H10*$H$6/((1-H10)*$H$7+H10*$H$6),H10),3) -> 0.165 | CV18: =IF(Unit="Mass Units",H10/$H$6/((1-H10)/$H$7+H10/$H$6),H10) -> 0.100
D19: 0.250 | E19: 0.591 | G19: Intercept of top op. line on y-axis | H19: =Calculation!$I$19 -> 0.667
D20: 0.200 | E20: 0.520 | G20: Mass flow rater of Top Product, D | H20: =F*(CU16-CU18)/(CU17-CU18) -> 612.1
D21: 0.150 | E21: 0.433 | G21: Mass flow rate of Bottom Product, B | H21: =F-D -> 387.9
D22: 0.100 | E22: 0.325 | G22: Feed Plate from top | H22: =Feed_Plate(Calculation!F37,Calculation!N:N) -> 3
D23: 0.050 | E23: 0.186 | G23: Slope of Top Operating Line | H23: =Calculation!I40 -> 0.259, 14.5˚
D24: -0.000 | E24: -0.000 | G24: Slope of Bottom Operating Line | H24: =Calculation!I37 -> 1.741, 60.1˚

Sheet Calculation (hidden)
B1: Equilibrium Diagram | E1: Diagonal | H1: Operating Lines | K1: Vertical Lines | N1: Horizontal | P1: Vertical | R1: Intersection Points
B2: x | C2: y | E2: x | F2: y | H2: x | I2: y | K2: x | L2: y | N2: x | O2: y | P2: x | Q2: y | R2: x | S2: y
B3: 1.00 | C3: 1.00 | E3: 1.0 | F3: 1.0 | H3: =Xd -> 0.900 | I3: =Xd -> 0.900 | K3: =Xd -> 0.9 | L3: 0.0 | N3: =Xd -> 0.900 | O3: =Xd -> 0.900 | P3: =R4 -> 0.676 | Q3: =S4 -> 0.900 | R3: =IFERROR(Xd,0) -> 0.900 | S3: =IFERROR(Xd,0) -> 0.900 | T3: 1 | X3: =IFERROR(V3,0) -> 0.000 | Y3: =IFERROR(W3,0) -> 0.000
B4: ='Input Data'!D5 -> 0.95 | C4: ='Input Data'!E5 -> 0.99 | E4: 0.9 | F4: 0.9 | H4: =IF(q=1,H15,(Xf/(1-q)-Xd/(Re+1))/(Re/(Re+1)+q/(1-q))) -> 0.500 | I4: =Re/(Re+1)*H4+Xd/(Re+1) -> 0.796 | K4: =Xd -> 0.9 | L4: =Xd -> 0.9 | N4: 0.000 | O4: =Xd -> 0.900 | P4: =P3 -> 0.676 | Q4: 0.000 | R4: =IF(AND(R3<Xb,R3=S3),$L$20,IntersectComplex(N3,O3,N4,O4,EquilibriumDiagram,TRUE)) -> 0.676 | S4: =IF(ISNUMBER(R4),S3,$L$20) -> 0.900 | X4: =IFERROR(V4,0) -> 0.000 | Y4: =IFERROR(W4,0) -> 0.000
B5: ='Input Data'!D6 -> 0.90 | C5: ='Input Data'!E6 -> 0.98 | E5: 0.8 | F5: 0.8 | H5: =Xb -> 0.100 | I5: =Xb -> 0.100 | K5: =Xf -> 0.5 | L5: 0.0 | N5: =R5 -> 0.676 | O5: =S5 -> 0.842 | P5: =R6 -> 0.551 | Q5: =S5 -> 0.842 | R5: =R4 -> 0.676 | S5: =IF(AND(R4>Xb,R5>Xb),(IF(R5<$H$4,IntersectComplex(P3,Q3,P4,Q4,BottomOperatingLine,FALSE),IntersectComplex(P3,Q3,P4,Q4,TopOperatingLine,FALSE))),R4) -> 0.842 | T5: 2 | X5: 0.000 | Y5: 0.000
B6: ='Input Data'!D7 -> 0.85 | C6: ='Input Data'!E7 -> 0.96 | E6: 0.7 | F6: 0.7 | K6: =Xf -> 0.5 | L6: =Xf -> 0.5 | N6: 0.000 | O6: =O5 -> 0.842 | P6: =P5 -> 0.551 | Q6: 0.000 | R6: =IF(AND(R5<Xb,R5=S5),$L$20,IntersectComplex(N5,O5,N6,O6,EquilibriumDiagram,TRUE)) -> 0.551 | S6: =IF(ISNUMBER(R6),S5,$L$20) -> 0.842 | X6: 0.000 | Y6: 0.000
B7: ='Input Data'!D8 -> 0.80 | C7: ='Input Data'!E8 -> 0.95 | E7: 0.6 | F7: 0.6 | K7: =Xb -> 0.1 | L7: 0.0 | N7: =R7 -> 0.551 | O7: =S7 -> 0.810 | P7: =R8 -> 0.495 | Q7: =S7 -> 0.810 | R7: 0.551 | S7: =IF(AND(R6>Xb,R7>Xb),IF(R7<$H$4,IntersectComplex(P5,Q5,P6,Q6,BottomOperatingLine,FALSE),IntersectComplex(P5,Q5,P6,Q6,TopOperatingLine,FALSE)),R6) -> 0.810 | T7: 3 | X7: 0.000 | Y7: 0.000
B8: ='Input Data'!D9 -> 0.75 | C8: ='Input Data'!E9 -> 0.93 | E8: 0.5 | F8: 0.5 | H8: Feed Line | K8: =Xb -> 0.1 | L8: =Xb -> 0.1 | N8: 0.000 | O8: =O7 -> 0.810 | P8: =P7 -> 0.495 | Q8: 0.000 | R8: =IF(AND(R7<Xb,R7=S7),$L$20,IntersectComplex(N7,O7,N8,O8,EquilibriumDiagram,TRUE)) -> 0.495 | S8: =IF(ISNUMBER(R8),S7,$L$20) -> 0.810 | X8: 0.000 | Y8: 0.000
B9: ='Input Data'!D10 -> 0.70 | C9: ='Input Data'!E10 -> 0.91 | E9: 0.4 | F9: 0.4 | H9: x | I9: y | N9: =R9 -> 0.495 | O9: =S9 -> 0.788 | P9: =R10 -> 0.462 | Q9: =S9 -> 0.788 | R9: 0.495 | S9: =IF(AND(R8>Xb,R9>Xb),IF(R9<$H$4,IntersectComplex(P7,Q7,P8,Q8,BottomOperatingLine,FALSE),IntersectComplex(P7,Q7,P8,Q8,TopOperatingLine,FALSE)),R8) -> 0.788 | T9: 4 | X9: 0.000 | Y9: 0.000
B10: ='Input Data'!D11 -> 0.65 | C10: ='Input Data'!E11 -> 0.89 | E10: 0.3 | F10: 0.3 | H10: =Xf -> 0.500 | I10: =Xf -> 0.500 | N10: 0.000 | O10: =O9 -> 0.788 | P10: =P9 -> 0.462 | Q10: 0.000 | R10: =IF(AND(R9<Xb,R9=S9),$L$20,IntersectComplex(N9,O9,N10,O10,EquilibriumDiagram,TRUE)) -> 0.462 | S10: =IF(ISNUMBER(R10),S9,$L$20) -> 0.788 | X10: 0.000 | Y10: 0.000
B11: ='Input Data'!D12 -> 0.60 | C11: ='Input Data'!E12 -> 0.87 | E11: 0.2 | F11: 0.2 | H11: =H4 -> 0.500 | I11: =I4 -> 0.796 | K11: =Feed_Plate(F37,N:N) -> 3 | N11: =R11 -> 0.462 | O11: =S11 -> 0.731 | P11: =R12 -> 0.386 | Q11: =S11 -> 0.731 | R11: 0.462 | S11: =IF(AND(R10>Xb,R11>Xb),IF(R11<$H$4,IntersectComplex(P9,Q9,P10,Q10,BottomOperatingLine,FALSE),IntersectComplex(P9,Q9,P10,Q10,TopOperatingLine,FALSE)),R10) -> 0.731 | T11: 5 | X11: 0.000 | Y11: 0.000
B12: ='Input Data'!D13 -> 0.55 | C12: ='Input Data'!E13 -> 0.84 | E12: 0.1 | F12: 0.1 | H12: 0 | I12: =IF(q<>1,Xf/(1-q),I11) -> 0.796 | N12: 0.000 | O12: =O11 -> 0.731 | P12: =P11 -> 0.386 | Q12: 0.000 | R12: =IF(AND(R11<Xb,R11=S11),$L$20,IntersectComplex(N11,O11,N12,O12,EquilibriumDiagram,TRUE)) -> 0.386 | S12: =IF(ISNUMBER(R12),S11,$L$20) -> 0.731 | X12: 0.000 | Y12: 0.000
B13: ='Input Data'!D14 -> 0.50 | C13: ='Input Data'!E14 -> 0.81 | E13: 0.0 | F13: 0.0 | H13: =(I13+(Xf/(q-1)))*((q-1)/q) ->  | I13: 1 | K13: =Feed_Plate(F37,N:N) -> 3 | N13: =R13 -> 0.386 | O13: =S13 -> 0.597 | P13: =R14 -> 0.255 | Q13: =S13 -> 0.597 | R13: 0.386 | S13: =IF(AND(R12>Xb,R13>Xb),IF(R13<$H$4,IntersectComplex(P11,Q11,P12,Q12,BottomOperatingLine,FALSE),IntersectComplex(P11,Q11,P12,Q12,TopOperatingLine,FALSE)),R12) -> 0.597 | T13: 6 | X13: 0.000 | Y13: 0.000
B14: ='Input Data'!D15 -> 0.45 | C14: ='Input Data'!E15 -> 0.78 | H14: If q=1 | N14: 0.000 | O14: =O13 -> 0.597 | P14: =P13 -> 0.255 | Q14: 0.000 | R14: =IF(AND(R13<Xb,R13=S13),$L$20,IntersectComplex(N13,O13,N14,O14,EquilibriumDiagram,TRUE)) -> 0.255 | S14: =IF(ISNUMBER(R14),S13,$L$20) -> 0.597 | X14: 0.000 | Y14: 0.000
B15: ='Input Data'!D16 -> 0.40 | C15: ='Input Data'!E16 -> 0.74 | E15: Top Intercept | H15: =IntersectComplex(Xf,0,Xf,1,H18:I19,TRUE) -> 0.5 | N15: =R15 -> 0.255 | O15: =S15 -> 0.370 | P15: =R16 -> 0.121 | Q15: =S15 -> 0.370 | R15: 0.255 | S15: =IF(AND(R14>Xb,R15>Xb),IF(R15<$H$4,IntersectComplex(P13,Q13,P14,Q14,BottomOperatingLine,FALSE),IntersectComplex(P13,Q13,P14,Q14,TopOperatingLine,FALSE)),R14) -> 0.370 | T15: 7 | X15: 0.000 | Y15: 0.000
B16: ='Input Data'!D17 -> 0.35 | C16: ='Input Data'!E17 -> 0.70 | E16: x | F16: y | N16: 0.000 | O16: =O15 -> 0.370 | P16: =P15 -> 0.121 | Q16: 0.000 | R16: =IF(AND(R15<Xb,R15=S15),$L$20,IntersectComplex(N15,O15,N16,O16,EquilibriumDiagram,TRUE)) -> 0.121 | S16: =IF(ISNUMBER(R16),S15,$L$20) -> 0.370 | X16: 0.000 | Y16: 0.000
B17: ='Input Data'!D18 -> 0.30 | C17: ='Input Data'!E18 -> 0.65 | E17: =H4 -> 0.500 | F17: =I4 -> 0.796 | H17: Top Operating Line | N17: =R17 -> 0.121 | O17: =S17 -> 0.136 | P17: =R18 -> 0.037 | Q17: =S17 -> 0.136 | R17: =R16 -> 0.121 | S17: =IF(AND(R16>Xb,R17>Xb),IF(R17<$H$4,IntersectComplex(P15,Q15,P16,Q16,BottomOperatingLine,FALSE),IntersectComplex(P15,Q15,P16,Q16,TopOperatingLine,FALSE)),R16) -> 0.136 | T17: 8 | X17: 0.000 | Y17: 0.000
B18: ='Input Data'!D19 -> 0.25 | C18: ='Input Data'!E19 -> 0.59 | E18: 0.000 | F18: =I19 -> 0.667 | H18: =Xd -> 0.90 | I18: =Xd -> 0.90 | N18: 0.000 | O18: =O17 -> 0.136 | P18: =P17 -> 0.037 | Q18: 0.000 | R18: =IF(AND(R17<Xb,R17=S17),$L$20,IntersectComplex(N17,O17,N18,O18,EquilibriumDiagram,TRUE)) -> 0.037 | S18: =IF(ISNUMBER(R18),S17,$L$20) -> 0.136 | X18: 0.000 | Y18: 0.000
B19: ='Input Data'!D20 -> 0.20 | C19: ='Input Data'!E20 -> 0.52 | H19: 0.00 | I19: =Xd/(Re+1) -> 0.67 | J19: For Error generation | N19: =R19 -> 0.037 | O19: =S19 -> 0.037 | P19: =R20 ->  | Q19: =S19 -> 0.037 | R19: 0.037 | S19: =IF(AND(R18>Xb,R19>Xb),IF(R19<$H$4,IntersectComplex(P17,Q17,P18,Q18,BottomOperatingLine,FALSE),IntersectComplex(P17,Q17,P18,Q18,TopOperatingLine,FALSE)),R18) -> 0.037 | T19: 9 | X19: 0.000 | Y19: 0.000
B20: ='Input Data'!D21 -> 0.15 | C20: ='Input Data'!E21 -> 0.43 | E20: =IntersectComplex(H10,I10,H13,I13,EquilibriumDiagram,TRUE) ->  | F20: =IntersectComplex(H10,I10,H13,I13,EquilibriumDiagram,FALSE) ->  | L20: =IntersectComplex(J23,K23,J24,K24,J26:K27,TRUE) ->  | N20: 0.000 | O20: =O19 -> 0.037 | P20: =P19 ->  | Q20: 0.000 | R20: =IF(AND(R19<Xb,R19=S19),$L$20,IntersectComplex(N19,O19,N20,O20,EquilibriumDiagram,TRUE)) ->  | S20: =IF(ISNUMBER(R20),S19,$L$20) ->  | X20: 0.000 | Y20: 0.000
B21: ='Input Data'!D22 -> 0.10 | C21: ='Input Data'!E22 -> 0.33 | N21: =R21 ->  | O21: =S21 ->  | P21: =R22 ->  | Q21: =S21 ->  | S21: =IF(AND(R20>Xb,R21>Xb),IF(R21<$H$4,IntersectComplex(P19,Q19,P20,Q20,BottomOperatingLine,FALSE),IntersectComplex(P19,Q19,P20,Q20,TopOperatingLine,FALSE)),R20) ->  | T21: 10 | X21: 0.000 | Y21: 0.000
B22: ='Input Data'!D23 -> 0.05 | C22: ='Input Data'!E23 -> 0.19 | N22: 0.000 | O22: =O21 ->  | P22: =P21 ->  | Q22: 0.000 | R22: =IF(AND(R21<Xb,R21=S21),$L$20,IntersectComplex(N21,O21,N22,O22,EquilibriumDiagram,TRUE)) ->  | S22: =IF(ISNUMBER(R22),S21,$L$20) ->  | X22: 0.000 | Y22: 0.000
B23: ='Input Data'!D24 -> -0.00 | C23: ='Input Data'!E24 -> -0.00 | J23: 1 | K23: 1 | N23: =R23 ->  | O23: =S23 ->  | P23: =R24 ->  | Q23: =S23 ->  | S23: =IF(AND(R22>Xb,R23>Xb),IF(R23<$H$4,IntersectComplex(P21,Q21,P22,Q22,BottomOperatingLine,FALSE),IntersectComplex(P21,Q21,P22,Q22,TopOperatingLine,FALSE)),R22) ->  | T23: 11 | X23: 0.000 | Y23: 0.000
B24: 0.00 | C24: 0.00 | J24: 1 | K24: 2 | N24: 0.000 | O24: =O23 ->  | P24: =P23 ->  | Q24: 0.000 | R24: =IF(AND(R23<Xb,R23=S23),$L$20,IntersectComplex(N23,O23,N24,O24,EquilibriumDiagram,TRUE)) ->  | S24: =IF(ISNUMBER(R24),S23,$L$20) ->  | X24: 0.000 | Y24: 0.000
N25: =R25 ->  | O25: =S25 ->  | P25: =R26 ->  | Q25: =S25 ->  | S25: =IF(AND(R24>Xb,R25>Xb),IF(R25<$H$4,IntersectComplex(P23,Q23,P24,Q24,BottomOperatingLine,FALSE),IntersectComplex(P23,Q23,P24,Q24,TopOperatingLine,FALSE)),R24) ->  | T25: 12 | X25: 0.000 | Y25: 0.000
F26: Minimum Reflux Ratio, Rm | J26: 2 | K26: 1 | N26: 0.000 | O26: =O25 ->  | P26: =P25 ->  | Q26: 0.000 | R26: =IF(AND(R25<Xb,R25=S25),$L$20,IntersectComplex(N25,O25,N26,O26,EquilibriumDiagram,TRUE)) ->  | S26: =IF(ISNUMBER(R26),S25,$L$20) ->  | X26: 0.000 | Y26: 0.000
J27: 2 | K27: 3 | N27: =R27 ->  | O27: =S27 ->  | P27: =R28 ->  | Q27: =S27 ->  | S27: =IF(AND(R26>Xb,R27>Xb),IF(R27<$H$4,IntersectComplex(P25,Q25,P26,Q26,BottomOperatingLine,FALSE),IntersectComplex(P25,Q25,P26,Q26,TopOperatingLine,FALSE)),R26) ->  | T27: 13 | X27: 0.000 | Y27: 0.000
F28: x | G28: y | N28: 0.000 | O28: =O27 ->  | P28: =P27 ->  | Q28: 0.000 | R28: =IF(AND(R27<Xb,R27=S27),$L$20,IntersectComplex(N27,O27,N28,O28,EquilibriumDiagram,TRUE)) ->  | S28: =IF(ISNUMBER(R28),S27,$L$20) ->  | X28: 0.000 | Y28: 0.000
A29: Intercept of q-line with equilibrium curve when q=1 | F29: =IF(q<>1,IntersectComplex(H10,I10,H12,I12,EquilibriumDiagram,TRUE),IntersectComplex(H10,I10,H10,1,EquilibriumDiagram,TRUE)) -> 0.5 | G29: =IF(q<>1,IntersectComplex(H10,I10,H12,I12,EquilibriumDiagram,FALSE),IntersectComplex(H10,I10,H10,1,EquilibriumDiagram,FALSE)) -> 0.8125937031 | N29: =R29 ->  | O29: =S29 ->  | P29: =R30 ->  | Q29: =S29 ->  | S29: =IF(AND(R28>Xb,R29>Xb),IF(R29<$H$4,IntersectComplex(P27,Q27,P28,Q28,BottomOperatingLine,FALSE),IntersectComplex(P27,Q27,P28,Q28,TopOperatingLine,FALSE)),R28) ->  | T29: 14 | X29: 0.000 | Y29: 0.000
A30: Intercept of q-line with equilibrium curve when q<>1 | F30: =IntersectComplex(H10,I10,H13,I13,EquilibriumDiagram,TRUE) ->  | G30: =IntersectComplex(H10,I10,H13,I13,EquilibriumDiagram,FALSE) ->  | N30: 0.000 | O30: =O29 ->  | P30: =P29 ->  | Q30: 0.000 | R30: =IF(AND(R29<Xb,R29=S29),$L$20,IntersectComplex(N29,O29,N30,O30,EquilibriumDiagram,TRUE)) ->  | S30: =IF(ISNUMBER(R30),S29,$L$20) ->  | X30: 0.000 | Y30: 0.000
F31: =IF(q>1,(Xd-F20)/(F20-E20),(Xd-G29)/(G29-F29)) -> 0.279616307 | I31: Bottom Operating Line Slope | N31: =R31 ->  | O31: =S31 ->  | P31: =R32 ->  | Q31: =S31 ->  | S31: =IF(AND(R30>Xb,R31>Xb),IF(R31<$H$4,IntersectComplex(P29,Q29,P30,Q30,BottomOperatingLine,FALSE),IntersectComplex(P29,Q29,P30,Q30,TopOperatingLine,FALSE)),R30) ->  | T31: 15 | X31: 0.000 | Y31: 0.000
N32: 0.000 | O32: =O31 ->  | P32: =P31 ->  | Q32: 0.000 | R32: =IF(AND(R31<Xb,R31=S31),$L$20,IntersectComplex(N31,O31,N32,O32,EquilibriumDiagram,TRUE)) ->  | S32: =IF(ISNUMBER(R32),S31,$L$20) ->  | X32: 0.000 | Y32: 0.000
F33: x | G33: y | I33: x | J33: y | N33: =R33 ->  | O33: =S33 ->  | P33: =R34 ->  | Q33: =S33 ->  | S33: =IF(AND(R32>Xb,R33>Xb),IF(R33<$H$4,IntersectComplex(P31,Q31,P32,Q32,BottomOperatingLine,FALSE),IntersectComplex(P31,Q31,P32,Q32,TopOperatingLine,FALSE)),R32) ->  | T33: 16 | X33: 0.000 | Y33: 0.000
F34: =Xf -> 0.5 | G34: =Xf -> 0.5 | I34: =Xb -> 0.1 | J34: =Xb -> 0.1 | L34: ˚ | N34: 0.000 | O34: =O33 ->  | P34: =P33 ->  | Q34: 0.000 | R34: =IF(AND(R33<Xb,R33=S33),$L$20,IntersectComplex(N33,O33,N34,O34,EquilibriumDiagram,TRUE)) ->  | S34: =IF(ISNUMBER(R34),S33,$L$20) ->  | X34: 0.000 | Y34: 0.000
F35: =IF(q<>1,IntersectComplex(H10,I10,H13,I13,EquilibriumDiagram,TRUE),IntersectComplex(H10,I10,H10,1,EquilibriumDiagram,TRUE)) -> 0.5 | G35: =IF(q<>1,IntersectComplex(H10,I10,H13,I13,EquilibriumDiagram,FALSE),IntersectComplex(H10,I10,H10,1,EquilibriumDiagram,FALSE)) -> 0.8125937031 | I35: =H4 -> 0.500 | J35: =I4 -> 0.796 | N35: =R35 ->  | O35: =S35 ->  | P35: =R36 ->  | Q35: =S35 ->  | S35: =IF(AND(R34>Xb,R35>Xb),IF(R35<$H$4,IntersectComplex(P33,Q33,P34,Q34,BottomOperatingLine,FALSE),IntersectComplex(P33,Q33,P34,Q34,TopOperatingLine,FALSE)),R34) ->  | T35: 17 | X35: 0.000 | Y35: 0.000
I36: =ROUND((J35-J34)/(I35-I34),3) -> 1.741 | J36: =ROUND(ATAN(I36)*360/2/PI(),1) -> 60.1 | N36: 0.000 | O36: =O35 ->  | P36: =P35 ->  | Q36: 0.000 | R36: =IF(AND(R35<Xb,R35=S35),$L$20,IntersectComplex(N35,O35,N36,O36,EquilibriumDiagram,TRUE)) ->  | S36: =IF(ISNUMBER(R36),S35,$L$20) ->  | X36: 0.000 | Y36: 0.000
F37: =IntersectComplex(F34,G34,F35,G35,V4987:W5001,TRUE) -> 0.5 | G37: =IntersectComplex(F34,G34,F35,G35,R3:S5001,FALSE) -> 0.809533629 | I37: =I36 & ", "&J36 & $L$34 -> 1.741, 60.1˚ | N37: =R37 ->  | O37: =S37 ->  | P37: =R38 ->  | Q37: =S37 ->  | S37: =IF(AND(R36>Xb,R37>Xb),IF(R37<$H$4,IntersectComplex(P35,Q35,P36,Q36,BottomOperatingLine,FALSE),IntersectComplex(P35,Q35,P36,Q36,TopOperatingLine,FALSE)),R36) ->  | T37: 18 | X37: 0.000 | Y37: 0.000
N38: 0.000 | O38: =O37 ->  | P38: =P37 ->  | Q38: 0.000 | R38: =IF(AND(R37<Xb,R37=S37),$L$20,IntersectComplex(N37,O37,N38,O38,EquilibriumDiagram,TRUE)) ->  | S38: =IF(ISNUMBER(R38),S37,$L$20) ->  | X38: 0.000 | Y38: 0.000
I39: =ROUND(Re/(Re+1),3) -> 0.259 | J39: =ROUND(ATAN(I39)*360/2/PI(),1) -> 14.5 | N39: =R39 ->  | O39: =S39 ->  | P39: =R40 ->  | Q39: =S39 ->  | S39: =IF(AND(R38>Xb,R39>Xb),IF(R39<$H$4,IntersectComplex(P37,Q37,P38,Q38,BottomOperatingLine,FALSE),IntersectComplex(P37,Q37,P38,Q38,TopOperatingLine,FALSE)),R38) ->  | T39: 19 | X39: 0.000 | Y39: 0.000
I40: =I39 & ", "&J39 & $L$34 -> 0.259, 14.5˚ | N40: 0.000 | O40: =O39 ->  | P40: =P39 ->  | Q40: 0.000 | R40: =IF(AND(R39<Xb,R39=S39),$L$20,IntersectComplex(N39,O39,N40,O40,EquilibriumDiagram,TRUE)) ->  | S40: =IF(ISNUMBER(R40),S39,$L$20) ->  | X40: 0.000 | Y40: 0.000
N41: =R41 ->  | O41: =S41 ->  | P41: =R42 ->  | Q41: =S41 ->  | S41: =IF(AND(R40>Xb,R41>Xb),IF(R41<$H$4,IntersectComplex(P39,Q39,P40,Q40,BottomOperatingLine,FALSE),IntersectComplex(P39,Q39,P40,Q40,TopOperatingLine,FALSE)),R40) ->  | T41: 20 | X41: 0.000 | Y41: 0.000
N42: 0.000 | O42: =O41 ->  | P42: =P41 ->  | Q42: 0.000 | R42: =IF(AND(R41<Xb,R41=S41),$L$20,IntersectComplex(N41,O41,N42,O42,EquilibriumDiagram,TRUE)) ->  | S42: =IF(ISNUMBER(R42),S41,$L$20) ->  | X42: 0.000 | Y42: 0.000
N43: =R43 ->  | O43: =S43 ->  | P43: =R44 ->  | Q43: =S43 ->  | S43: =IF(AND(R42>Xb,R43>Xb),IF(R43<$H$4,IntersectComplex(P41,Q41,P42,Q42,BottomOperatingLine,FALSE),IntersectComplex(P41,Q41,P42,Q42,TopOperatingLine,FALSE)),R42) ->  | T43: 21 | X43: 0.000 | Y43: 0.000
N44: 0.000 | O44: =O43 ->  | P44: =P43 ->  | Q44: 0.000 | R44: =IF(AND(R43<Xb,R43=S43),$L$20,IntersectComplex(N43,O43,N44,O44,EquilibriumDiagram,TRUE)) ->  | S44: =IF(ISNUMBER(R44),S43,$L$20) ->  | X44: 0.000 | Y44: 0.000
N45: =R45 ->  | O45: =S45 ->  | P45: =R46 ->  | Q45: =S45 ->  | S45: =IF(AND(R44>Xb,R45>Xb),IF(R45<$H$4,IntersectComplex(P43,Q43,P44,Q44,BottomOperatingLine,FALSE),IntersectComplex(P43,Q43,P44,Q44,TopOperatingLine,FALSE)),R44) ->  | T45: 22 | X45: 0.000 | Y45: 0.000
N46: 0.000 | O46: =O45 ->  | P46: =P45 ->  | Q46: 0.000 | R46: =IF(AND(R45<Xb,R45=S45),$L$20,IntersectComplex(N45,O45,N46,O46,EquilibriumDiagram,TRUE)) ->  | S46: =IF(ISNUMBER(R46),S45,$L$20) ->  | X46: 0.000 | Y46: 0.000
N47: =R47 ->  | O47: =S47 ->  | P47: =R48 ->  | Q47: =S47 ->  | S47: =IF(AND(R46>Xb,R47>Xb),IF(R47<$H$4,IntersectComplex(P45,Q45,P46,Q46,BottomOperatingLine,FALSE),IntersectComplex(P45,Q45,P46,Q46,TopOperatingLine,FALSE)),R46) ->  | T47: 23 | X47: 0.000 | Y47: 0.000
N48: 0.000 | O48: =O47 ->  | P48: =P47 ->  | Q48: 0.000 | R48: =IF(AND(R47<Xb,R47=S47),$L$20,IntersectComplex(N47,O47,N48,O48,EquilibriumDiagram,TRUE)) ->  | S48: =IF(ISNUMBER(R48),S47,$L$20) ->  | X48: 0.000 | Y48: 0.000
N49: =R49 ->  | O49: =S49 ->  | P49: =R50 ->  | Q49: =S49 ->  | S49: =IF(AND(R48>Xb,R49>Xb),IF(R49<$H$4,IntersectComplex(P47,Q47,P48,Q48,BottomOperatingLine,FALSE),IntersectComplex(P47,Q47,P48,Q48,TopOperatingLine,FALSE)),R48) ->  | T49: 24 | X49: 0.000 | Y49: 0.000
N50: 0.000 | O50: =O49 ->  | P50: =P49 ->  | Q50: 0.000 | R50: =IF(AND(R49<Xb,R49=S49),$L$20,IntersectComplex(N49,O49,N50,O50,EquilibriumDiagram,TRUE)) ->  | S50: =IF(ISNUMBER(R50),S49,$L$20) ->  | X50: 0.000 | Y50: 0.000
N51: =R51 ->  | O51: =S51 ->  | P51: =R52 ->  | Q51: =S51 ->  | S51: =IF(AND(R50>Xb,R51>Xb),IF(R51<$H$4,IntersectComplex(P49,Q49,P50,Q50,BottomOperatingLine,FALSE),IntersectComplex(P49,Q49,P50,Q50,TopOperatingLine,FALSE)),R50) ->  | T51: 25 | X51: 0.000 | Y51: 0.000
N52: 0.000 | O52: =O51 ->  | P52: =P51 ->  | Q52: 0.000 | R52: =IF(AND(R51<Xb,R51=S51),$L$20,IntersectComplex(N51,O51,N52,O52,EquilibriumDiagram,TRUE)) ->  | S52: =IF(ISNUMBER(R52),S51,$L$20) ->  | X52: 0.000 | Y52: 0.000
N53: =R53 ->  | O53: =S53 ->  | P53: =R54 ->  | Q53: =S53 ->  | S53: =IF(AND(R52>Xb,R53>Xb),IF(R53<$H$4,IntersectComplex(P51,Q51,P52,Q52,BottomOperatingLine,FALSE),IntersectComplex(P51,Q51,P52,Q52,TopOperatingLine,FALSE)),R52) ->  | T53: 26 | X53: 0.000 | Y53: 0.000
N54: 0.000 | O54: =O53 ->  | P54: =P53 ->  | Q54: 0.000 | R54: =IF(AND(R53<Xb,R53=S53),$L$20,IntersectComplex(N53,O53,N54,O54,EquilibriumDiagram,TRUE)) ->  | S54: =IF(ISNUMBER(R54),S53,$L$20) ->  | X54: 0.000 | Y54: 0.000
N55: =R55 ->  | O55: =S55 ->  | P55: =R56 ->  | Q55: =S55 ->  | S55: =IF(AND(R54>Xb,R55>Xb),IF(R55<$H$4,IntersectComplex(P53,Q53,P54,Q54,BottomOperatingLine,FALSE),IntersectComplex(P53,Q53,P54,Q54,TopOperatingLine,FALSE)),R54) ->  | T55: 27 | X55: 0.000 | Y55: 0.000
N56: 0.000 | O56: =O55 ->  | P56: =P55 ->  | Q56: 0.000 | R56: =IF(AND(R55<Xb,R55=S55),$L$20,IntersectComplex(N55,O55,N56,O56,EquilibriumDiagram,TRUE)) ->  | S56: =IF(ISNUMBER(R56),S55,$L$20) ->  | X56: 0.000 | Y56: 0.000
N57: =R57 ->  | O57: =S57 ->  | P57: =R58 ->  | Q57: =S57 ->  | S57: =IF(AND(R56>Xb,R57>Xb),IF(R57<$H$4,IntersectComplex(P55,Q55,P56,Q56,BottomOperatingLine,FALSE),IntersectComplex(P55,Q55,P56,Q56,TopOperatingLine,FALSE)),R56) ->  | T57: 28 | X57: 0.000 | Y57: 0.000
N58: 0.000 | O58: =O57 ->  | P58: =P57 ->  | Q58: 0.000 | R58: =IF(AND(R57<Xb,R57=S57),$L$20,IntersectComplex(N57,O57,N58,O58,EquilibriumDiagram,TRUE)) ->  | S58: =IF(ISNUMBER(R58),S57,$L$20) ->  | X58: 0.000 | Y58: 0.000
N59: =R59 ->  | O59: =S59 ->  | P59: =R60 ->  | Q59: =S59 ->  | S59: =IF(AND(R58>Xb,R59>Xb),IF(R59<$H$4,IntersectComplex(P57,Q57,P58,Q58,BottomOperatingLine,FALSE),IntersectComplex(P57,Q57,P58,Q58,TopOperatingLine,FALSE)),R58) ->  | T59: 29 | X59: 0.000 | Y59: 0.000
N60: 0.000 | O60: =O59 ->  | P60: =P59 ->  | Q60: 0.000 | R60: =IF(AND(R59<Xb,R59=S59),$L$20,IntersectComplex(N59,O59,N60,O60,EquilibriumDiagram,TRUE)) ->  | S60: =IF(ISNUMBER(R60),S59,$L$20) ->  | X60: 0.000 | Y60: 0.000
N61: =R61 ->  | O61: =S61 ->  | P61: =R62 ->  | Q61: =S61 ->  | S61: =IF(AND(R60>Xb,R61>Xb),IF(R61<$H$4,IntersectComplex(P59,Q59,P60,Q60,BottomOperatingLine,FALSE),IntersectComplex(P59,Q59,P60,Q60,TopOperatingLine,FALSE)),R60) ->  | T61: 30 | X61: 0.000 | Y61: 0.000
N62: 0.000 | O62: =O61 ->  | P62: =P61 ->  | Q62: 0.000 | R62: =IF(AND(R61<Xb,R61=S61),$L$20,IntersectComplex(N61,O61,N62,O62,EquilibriumDiagram,TRUE)) ->  | S62: =IF(ISNUMBER(R62),S61,$L$20) ->  | X62: 0.000 | Y62: 0.000
N63: =R63 ->  | O63: =S63 ->  | P63: =R64 ->  | Q63: =S63 ->  | S63: =IF(AND(R62>Xb,R63>Xb),IF(R63<$H$4,IntersectComplex(P61,Q61,P62,Q62,BottomOperatingLine,FALSE),IntersectComplex(P61,Q61,P62,Q62,TopOperatingLine,FALSE)),R62) ->  | T63: 31 | X63: 0.000 | Y63: 0.000
N64: 0.000 | O64: =O63 ->  | P64: =P63 ->  | Q64: 0.000 | R64: =IF(AND(R63<Xb,R63=S63),$L$20,IntersectComplex(N63,O63,N64,O64,EquilibriumDiagram,TRUE)) ->  | S64: =IF(ISNUMBER(R64),S63,$L$20) ->  | X64: 0.000 | Y64: 0.000
N65: =R65 ->  | O65: =S65 ->  | P65: =R66 ->  | Q65: =S65 ->  | S65: =IF(AND(R64>Xb,R65>Xb),IF(R65<$H$4,IntersectComplex(P63,Q63,P64,Q64,BottomOperatingLine,FALSE),IntersectComplex(P63,Q63,P64,Q64,TopOperatingLine,FALSE)),R64) ->  | T65: 32 | X65: 0.000 | Y65: 0.000
N66: 0.000 | O66: =O65 ->  | P66: =P65 ->  | Q66: 0.000 | R66: =IF(AND(R65<Xb,R65=S65),$L$20,IntersectComplex(N65,O65,N66,O66,EquilibriumDiagram,TRUE)) ->  | S66: =IF(ISNUMBER(R66),S65,$L$20) ->  | X66: 0.000 | Y66: 0.000
N67: =R67 ->  | O67: =S67 ->  | P67: =R68 ->  | Q67: =S67 ->  | S67: =IF(AND(R66>Xb,R67>Xb),IF(R67<$H$4,IntersectComplex(P65,Q65,P66,Q66,BottomOperatingLine,FALSE),IntersectComplex(P65,Q65,P66,Q66,TopOperatingLine,FALSE)),R66) ->  | T67: 33 | X67: 0.000 | Y67: 0.000
N68: 0.000 | O68: =O67 ->  | P68: =P67 ->  | Q68: 0.000 | R68: =IF(AND(R67<Xb,R67=S67),$L$20,IntersectComplex(N67,O67,N68,O68,EquilibriumDiagram,TRUE)) ->  | S68: =IF(ISNUMBER(R68),S67,$L$20) ->  | X68: =IFERROR(V68,0) -> 0.000 | Y68: =IFERROR(W68,0) -> 0.000
N69: =R69 ->  | O69: =S69 ->  | P69: =R70 ->  | Q69: =S69 ->  | R69: =R68 ->  | S69: =IF(AND(R68>Xb,R69>Xb),IF(R69<$H$4,IntersectComplex(P67,Q67,P68,Q68,BottomOperatingLine,FALSE),IntersectComplex(P67,Q67,P68,Q68,TopOperatingLine,FALSE)),R68) ->  | T69: 34 | X69: 0.000 | Y69: 0.000
N70: 0.000 | O70: =O69 ->  | P70: =P69 ->  | Q70: 0.000 | R70: =IF(AND(R69<Xb,R69=S69),$L$20,IntersectComplex(N69,O69,N70,O70,EquilibriumDiagram,TRUE)) ->  | S70: =IF(ISNUMBER(R70),S69,$L$20) ->  | X70: 0.000 | Y70: 0.000
N71: =R71 ->  | O71: =S71 ->  | P71: =R72 ->  | Q71: =S71 ->  | S71: =IF(AND(R70>Xb,R71>Xb),IF(R71<$H$4,IntersectComplex(P69,Q69,P70,Q70,BottomOperatingLine,FALSE),IntersectComplex(P69,Q69,P70,Q70,TopOperatingLine,FALSE)),R70) ->  | T71: 35 | X71: 0.000 | Y71: 0.000
N72: 0.000 | O72: =O71 ->  | P72: =P71 ->  | Q72: 0.000 | R72: =IF(AND(R71<Xb,R71=S71),$L$20,IntersectComplex(N71,O71,N72,O72,EquilibriumDiagram,TRUE)) ->  | S72: =IF(ISNUMBER(R72),S71,$L$20) ->  | X72: 0.000 | Y72: 0.000
N73: =R73 ->  | O73: =S73 ->  | P73: =R74 ->  | Q73: =S73 ->  | S73: =IF(AND(R72>Xb,R73>Xb),IF(R73<$H$4,IntersectComplex(P71,Q71,P72,Q72,BottomOperatingLine,FALSE),IntersectComplex(P71,Q71,P72,Q72,TopOperatingLine,FALSE)),R72) ->  | T73: 36 | X73: 0.000 | Y73: 0.000
N74: 0.000 | O74: =O73 ->  | P74: =P73 ->  | Q74: 0.000 | R74: =IF(AND(R73<Xb,R73=S73),$L$20,IntersectComplex(N73,O73,N74,O74,EquilibriumDiagram,TRUE)) ->  | S74: =IF(ISNUMBER(R74),S73,$L$20) ->  | X74: 0.000 | Y74: 0.000
N75: =R75 ->  | O75: =S75 ->  | P75: =R76 ->  | Q75: =S75 ->  | S75: =IF(AND(R74>Xb,R75>Xb),IF(R75<$H$4,IntersectComplex(P73,Q73,P74,Q74,BottomOperatingLine,FALSE),IntersectComplex(P73,Q73,P74,Q74,TopOperatingLine,FALSE)),R74) ->  | T75: 37 | X75: 0.000 | Y75: 0.000
N76: 0.000 | O76: =O75 ->  | P76: =P75 ->  | Q76: 0.000 | R76: =IF(AND(R75<Xb,R75=S75),$L$20,IntersectComplex(N75,O75,N76,O76,EquilibriumDiagram,TRUE)) ->  | S76: =IF(ISNUMBER(R76),S75,$L$20) ->  | X76: 0.000 | Y76: 0.000
N77: =R77 ->  | O77: =S77 ->  | P77: =R78 ->  | Q77: =S77 ->  | S77: =IF(AND(R76>Xb,R77>Xb),IF(R77<$H$4,IntersectComplex(P75,Q75,P76,Q76,BottomOperatingLine,FALSE),IntersectComplex(P75,Q75,P76,Q76,TopOperatingLine,FALSE)),R76) ->  | T77: 38 | X77: 0.000 | Y77: 0.000
N78: 0.000 | O78: =O77 ->  | P78: =P77 ->  | Q78: 0.000 | R78: =IF(AND(R77<Xb,R77=S77),$L$20,IntersectComplex(N77,O77,N78,O78,EquilibriumDiagram,TRUE)) ->  | S78: =IF(ISNUMBER(R78),S77,$L$20) ->  | X78: 0.000 | Y78: 0.000
N79: =R79 ->  | O79: =S79 ->  | P79: =R80 ->  | Q79: =S79 ->  | S79: =IF(AND(R78>Xb,R79>Xb),IF(R79<$H$4,IntersectComplex(P77,Q77,P78,Q78,BottomOperatingLine,FALSE),IntersectComplex(P77,Q77,P78,Q78,TopOperatingLine,FALSE)),R78) ->  | T79: 39 | X79: 0.000 | Y79: 0.000
N80: 0.000 | O80: =O79 ->  | P80: =P79 ->  | Q80: 0.000 | R80: =IF(AND(R79<Xb,R79=S79),$L$20,IntersectComplex(N79,O79,N80,O80,EquilibriumDiagram,TRUE)) ->  | S80: =IF(ISNUMBER(R80),S79,$L$20) ->  | X80: 0.000 | Y80: 0.000
N81: =R81 ->  | O81: =S81 ->  | P81: =R82 ->  | Q81: =S81 ->  | S81: =IF(AND(R80>Xb,R81>Xb),IF(R81<$H$4,IntersectComplex(P79,Q79,P80,Q80,BottomOperatingLine,FALSE),IntersectComplex(P79,Q79,P80,Q80,TopOperatingLine,FALSE)),R80) ->  | T81: 40 | X81: 0.000 | Y81: 0.000
N82: 0.000 | O82: =O81 ->  | P82: =P81 ->  | Q82: 0.000 | R82: =IF(AND(R81<Xb,R81=S81),$L$20,IntersectComplex(N81,O81,N82,O82,EquilibriumDiagram,TRUE)) ->  | S82: =IF(ISNUMBER(R82),S81,$L$20) ->  | X82: 0.000 | Y82: 0.000
N83: =R83 ->  | O83: =S83 ->  | P83: =R84 ->  | Q83: =S83 ->  | S83: =IF(AND(R82>Xb,R83>Xb),IF(R83<$H$4,IntersectComplex(P81,Q81,P82,Q82,BottomOperatingLine,FALSE),IntersectComplex(P81,Q81,P82,Q82,TopOperatingLine,FALSE)),R82) ->  | T83: 41 | X83: 0.000 | Y83: 0.000
N84: 0.000 | O84: =O83 ->  | P84: =P83 ->  | Q84: 0.000 | R84: =IF(AND(R83<Xb,R83=S83),$L$20,IntersectComplex(N83,O83,N84,O84,EquilibriumDiagram,TRUE)) ->  | S84: =IF(ISNUMBER(R84),S83,$L$20) ->  | X84: 0.000 | Y84: 0.000
N85: =R85 ->  | O85: =S85 ->  | P85: =R86 ->  | Q85: =S85 ->  | S85: =IF(AND(R84>Xb,R85>Xb),IF(R85<$H$4,IntersectComplex(P83,Q83,P84,Q84,BottomOperatingLine,FALSE),IntersectComplex(P83,Q83,P84,Q84,TopOperatingLine,FALSE)),R84) ->  | T85: 42 | X85: 0.000 | Y85: 0.000
N86: 0.000 | O86: =O85 ->  | P86: =P85 ->  | Q86: 0.000 | R86: =IF(AND(R85<Xb,R85=S85),$L$20,IntersectComplex(N85,O85,N86,O86,EquilibriumDiagram,TRUE)) ->  | S86: =IF(ISNUMBER(R86),S85,$L$20) ->  | X86: 0.000 | Y86: 0.000
N87: =R87 ->  | O87: =S87 ->  | P87: =R88 ->  | Q87: =S87 ->  | S87: =IF(AND(R86>Xb,R87>Xb),IF(R87<$H$4,IntersectComplex(P85,Q85,P86,Q86,BottomOperatingLine,FALSE),IntersectComplex(P85,Q85,P86,Q86,TopOperatingLine,FALSE)),R86) ->  | T87: 43 | X87: 0.000 | Y87: 0.000
N88: 0.000 | O88: =O87 ->  | P88: =P87 ->  | Q88: 0.000 | R88: =IF(AND(R87<Xb,R87=S87),$L$20,IntersectComplex(N87,O87,N88,O88,EquilibriumDiagram,TRUE)) ->  | S88: =IF(ISNUMBER(R88),S87,$L$20) ->  | X88: 0.000 | Y88: 0.000
N89: =R89 ->  | O89: =S89 ->  | P89: =R90 ->  | Q89: =S89 ->  | S89: =IF(AND(R88>Xb,R89>Xb),IF(R89<$H$4,IntersectComplex(P87,Q87,P88,Q88,BottomOperatingLine,FALSE),IntersectComplex(P87,Q87,P88,Q88,TopOperatingLine,FALSE)),R88) ->  | T89: 44 | X89: 0.000 | Y89: 0.000
N90: 0.000 | O90: =O89 ->  | P90: =P89 ->  | Q90: 0.000 | R90: =IF(AND(R89<Xb,R89=S89),$L$20,IntersectComplex(N89,O89,N90,O90,EquilibriumDiagram,TRUE)) ->  | S90: =IF(ISNUMBER(R90),S89,$L$20) ->  | X90: 0.000 | Y90: 0.000
N91: =R91 ->  | O91: =S91 ->  | P91: =R92 ->  | Q91: =S91 ->  | S91: =IF(AND(R90>Xb,R91>Xb),IF(R91<$H$4,IntersectComplex(P89,Q89,P90,Q90,BottomOperatingLine,FALSE),IntersectComplex(P89,Q89,P90,Q90,TopOperatingLine,FALSE)),R90) ->  | T91: 45 | X91: 0.000 | Y91: 0.000
N92: 0.000 | O92: =O91 ->  | P92: =P91 ->  | Q92: 0.000 | R92: =IF(AND(R91<Xb,R91=S91),$L$20,IntersectComplex(N91,O91,N92,O92,EquilibriumDiagram,TRUE)) ->  | S92: =IF(ISNUMBER(R92),S91,$L$20) ->  | X92: 0.000 | Y92: 0.000
N93: =R93 ->  | O93: =S93 ->  | P93: =R94 ->  | Q93: =S93 ->  | S93: =IF(AND(R92>Xb,R93>Xb),IF(R93<$H$4,IntersectComplex(P91,Q91,P92,Q92,BottomOperatingLine,FALSE),IntersectComplex(P91,Q91,P92,Q92,TopOperatingLine,FALSE)),R92) ->  | T93: 46 | X93: 0.000 | Y93: 0.000
N94: 0.000 | O94: =O93 ->  | P94: =P93 ->  | Q94: 0.000 | R94: =IF(AND(R93<Xb,R93=S93),$L$20,IntersectComplex(N93,O93,N94,O94,EquilibriumDiagram,TRUE)) ->  | S94: =IF(ISNUMBER(R94),S93,$L$20) ->  | X94: 0.000 | Y94: 0.000
N95: =R95 ->  | O95: =S95 ->  | P95: =R96 ->  | Q95: =S95 ->  | S95: =IF(AND(R94>Xb,R95>Xb),IF(R95<$H$4,IntersectComplex(P93,Q93,P94,Q94,BottomOperatingLine,FALSE),IntersectComplex(P93,Q93,P94,Q94,TopOperatingLine,FALSE)),R94) ->  | T95: 47 | X95: 0.000 | Y95: 0.000
N96: 0.000 | O96: =O95 ->  | P96: =P95 ->  | Q96: 0.000 | R96: =IF(AND(R95<Xb,R95=S95),$L$20,IntersectComplex(N95,O95,N96,O96,EquilibriumDiagram,TRUE)) ->  | S96: =IF(ISNUMBER(R96),S95,$L$20) ->  | X96: 0.000 | Y96: 0.000
N97: =R97 ->  | O97: =S97 ->  | P97: =R98 ->  | Q97: =S97 ->  | S97: =IF(AND(R96>Xb,R97>Xb),IF(R97<$H$4,IntersectComplex(P95,Q95,P96,Q96,BottomOperatingLine,FALSE),IntersectComplex(P95,Q95,P96,Q96,TopOperatingLine,FALSE)),R96) ->  | T97: 48 | X97: 0.000 | Y97: 0.000
N98: 0.000 | O98: =O97 ->  | P98: =P97 ->  | Q98: 0.000 | R98: =IF(AND(R97<Xb,R97=S97),$L$20,IntersectComplex(N97,O97,N98,O98,EquilibriumDiagram,TRUE)) ->  | S98: =IF(ISNUMBER(R98),S97,$L$20) ->  | X98: 0.000 | Y98: 0.000
N99: =R99 ->  | O99: =S99 ->  | P99: =R100 ->  | Q99: =S99 ->  | S99: =IF(AND(R98>Xb,R99>Xb),IF(R99<$H$4,IntersectComplex(P97,Q97,P98,Q98,BottomOperatingLine,FALSE),IntersectComplex(P97,Q97,P98,Q98,TopOperatingLine,FALSE)),R98) ->  | T99: 49 | X99: 0.000 | Y99: 0.000
N100: 0.000 | O100: =O99 ->  | P100: =P99 ->  | Q100: 0.000 | R100: =IF(AND(R99<Xb,R99=S99),$L$20,IntersectComplex(N99,O99,N100,O100,EquilibriumDiagram,TRUE)) ->  | S100: =IF(ISNUMBER(R100),S99,$L$20) ->  | X100: 0.000 | Y100: 0.000
N101: =R101 ->  | O101: =S101 ->  | P101: =R102 ->  | Q101: =S101 ->  | S101: =IF(AND(R100>Xb,R101>Xb),IF(R101<$H$4,IntersectComplex(P99,Q99,P100,Q100,BottomOperatingLine,FALSE),IntersectComplex(P99,Q99,P100,Q100,TopOperatingLine,FALSE)),R100) ->  | T101: 50 | X101: 0.000 | Y101: 0.000
N102: 0.000 | O102: =O101 ->  | P102: =P101 ->  | Q102: 0.000 | R102: =IF(AND(R101<Xb,R101=S101),$L$20,IntersectComplex(N101,O101,N102,O102,EquilibriumDiagram,TRUE)) ->  | S102: =IF(ISNUMBER(R102),S101,$L$20) ->  | X102: 0.000 | Y102: 0.000
X103: 0.000 | Y103: 0.000
X104: 0.000 | Y104: 0.000
X105: 0.000 | Y105: 0.000
X106: 0.000 | Y106: 0.000
X107: 0.000 | Y107: 0.000
X108: 0.000 | Y108: 0.000
X109: 0.000 | Y109: 0.000
X110: 0.000 | Y110: 0.000
X111: 0.000 | Y111: 0.000
X112: 0.000 | Y112: 0.000
X113: 0.000 | Y113: 0.000
X114: 0.000 | Y114: 0.000
X115: 0.000 | Y115: 0.000
X116: 0.000 | Y116: 0.000
X117: 0.000 | Y117: 0.000
X118: 0.000 | Y118: 0.000
X119: 0.000 | Y119: 0.000
X120: 0.000 | Y120: 0.000
X121: 0.000 | Y121: 0.000
X122: 0.000 | Y122: 0.000
X123: 0.000 | Y123: 0.000
X124: 0.000 | Y124: 0.000
X125: 0.000 | Y125: 0.000
X126: 0.000 | Y126: 0.000
X127: 0.000 | Y127: 0.000
X128: 0.000 | Y128: 0.000
X129: 0.000 | Y129: 0.000
X130: 0.000 | Y130: 0.000
X131: 0.000 | Y131: 0.000
X132: =IFERROR(V132,0) -> 0.000 | Y132: =IFERROR(W132,0) -> 0.000
X133: 0.000 | Y133: 0.000
X134: 0.000 | Y134: 0.000
X135: 0.000 | Y135: 0.000
X136: 0.000 | Y136: 0.000
X137: 0.000 | Y137: 0.000
X138: 0.000 | Y138: 0.000
X139: 0.000 | Y139: 0.000
X140: 0.000 | Y140: 0.000
X141: 0.000 | Y141: 0.000
X142: 0.000 | Y142: 0.000
X143: 0.000 | Y143: 0.000
X144: 0.000 | Y144: 0.000
X145: 0.000 | Y145: 0.000
X146: 0.000 | Y146: 0.000
X147: 0.000 | Y147: 0.000
X148: 0.000 | Y148: 0.000
X149: 0.000 | Y149: 0.000
X150: 0.000 | Y150: 0.000
X151: 0.000 | Y151: 0.000
X152: 0.000 | Y152: 0.000
X153: 0.000 | Y153: 0.000
X154: 0.000 | Y154: 0.000
X155: 0.000 | Y155: 0.000
X156: 0.000 | Y156: 0.000
X157: 0.000 | Y157: 0.000
X158: 0.000 | Y158: 0.000
X159: 0.000 | Y159: 0.000
X160: 0.000 | Y160: 0.000
X161: 0.000 | Y161: 0.000
X162: 0.000 | Y162: 0.000
X163: 0.000 | Y163: 0.000
X164: 0.000 | Y164: 0.000
X165: 0.000 | Y165: 0.000
X166: 0.000 | Y166: 0.000
X167: 0.000 | Y167: 0.000
X168: 0.000 | Y168: 0.000
X169: 0.000 | Y169: 0.000
X170: 0.000 | Y170: 0.000
X171: 0.000 | Y171: 0.000
X172: 0.000 | Y172: 0.000
X173: 0.000 | Y173: 0.000
X174: 0.000 | Y174: 0.000
X175: 0.000 | Y175: 0.000
X176: 0.000 | Y176: 0.000
X177: 0.000 | Y177: 0.000
X178: 0.000 | Y178: 0.000
X179: 0.000 | Y179: 0.000
X180: 0.000 | Y180: 0.000
X181: 0.000 | Y181: 0.000
X182: 0.000 | Y182: 0.000
X183: 0.000 | Y183: 0.000
X184: 0.000 | Y184: 0.000
X185: 0.000 | Y185: 0.000
X186: 0.000 | Y186: 0.000
X187: 0.000 | Y187: 0.000
X188: 0.000 | Y188: 0.000
X189: 0.000 | Y189: 0.000
X190: 0.000 | Y190: 0.000
X191: 0.000 | Y191: 0.000
X192: 0.000 | Y192: 0.000
X193: 0.000 | Y193: 0.000
X194: 0.000 | Y194: 0.000
X195: 0.000 | Y195: 0.000
X196: =IFERROR(V196,0) -> 0.000 | Y196: =IFERROR(W196,0) -> 0.000
X197: 0.000 | Y197: 0.000
X198: 0.000 | Y198: 0.000
X199: 0.000 | Y199: 0.000
X200: 0.000 | Y200: 0.000
... 4802 more rows
